[Event "Live Chess"]
[Site "Chess.com"]
[Date "2023.05.20"]
[Round "-"]
[White "mach247"]
[Black "Duke_of_Bebington"]
[Result "1-0"]
[WhiteElo "1335"]
[BlackElo "1561"]
[TimeControl "300"]
[EndTime "11:49:56 PDT"]
[Termination "mach247 won by checkmate"]

1. e4 {[%clk 0:04:59.1]} 1... e5 {[%clk 0:04:58.5]} 2. Nf3 {[%clk 0:04:57.7]}
2... Nf6 {[%clk 0:04:57.6]} 3. d4 {[%clk 0:04:53.4]} 3... Nxe4 {[%clk
0:04:55.4]} 4. Bd3 {[%clk 0:04:52.9]} 4... Nc6 {[%clk 0:04:51.1]} 5. Nc3 {[%clk
0:04:45.1]} 5... Nxc3 {[%clk 0:04:44.7]} 6. bxc3 {[%clk 0:04:44.3]} 6... exd4
{[%clk 0:04:39.5]} 7. cxd4 {[%clk 0:04:43.3]} 7... d5 {[%clk 0:04:36.7]} 8. O-O
{[%clk 0:04:42]} 8... Be7 {[%clk 0:04:33]} 9. h3 {[%clk 0:04:35.3]} 9... O-O
{[%clk 0:04:30.9]} 10. c3 {[%clk 0:04:34.6]} 10... Be6 {[%clk 0:04:27.1]} 11.
Qc2 {[%clk 0:04:33.7]} 11... h6 {[%clk 0:04:24.8]} 12. Bf4 {[%clk 0:04:23.8]}
12... Bf6 {[%clk 0:04:21.9]} 13. Rfe1 {[%clk 0:04:18.3]} 13... Ne7 {[%clk
0:04:18.8]} 14. Rab1 {[%clk 0:04:02.8]} 14... b6 {[%clk 0:04:15.2]} 15. Ne5
{[%clk 0:03:59.8]} 15... c5 {[%clk 0:04:07.9]} 16. Qd2 {[%clk 0:03:36.9]} 16...
Rc8 {[%clk 0:03:39.7]} 17. Bxh6 {[%clk 0:03:26.5]} 17... gxh6 {[%clk 0:03:37.9]}
18. Qxh6 {[%clk 0:03:25.9]} 18... Ng6 {[%clk 0:03:30.6]} 19. Nxg6 {[%clk
0:03:25.1]} 19... fxg6 {[%clk 0:03:29.7]} 20. Qxg6+ {[%clk 0:03:24.5]} 20... Bg7
{[%clk 0:03:28.6]} 21. Qxe6+ {[%clk 0:03:17.2]} 21... Kh8 {[%clk 0:03:25.4]} 22.
Qg6 {[%clk 0:02:54.5]} 22... Qh4 {[%clk 0:03:22.3]} 23. Re7 {[%clk 0:02:03]}
23... Bf6 {[%clk 0:02:46.4]} 24. Rh7+ {[%clk 0:01:55.3]} 24... Qxh7 {[%clk
0:02:40.2]} 25. Qxh7# {[%clk 0:01:54.6]} 1-0

[Event "Live Chess"]
[Site "Chess.com"]
[Date "2023.05.20"]
[Round "-"]
[White "CeladonFish"]
[Black "Olisingapore"]
[Result "0-1"]
[WhiteElo "1094"]
[BlackElo "1918"]
[TimeControl "300"]
[EndTime "11:50:10 PDT"]
[Termination "Olisingapore won by checkmate"]

1. d4 {[%clk 0:04:59]} 1... Nf6 {[%clk 0:04:58.5]} 2. c4 {[%clk 0:04:53.2]} 2...
d5 {[%clk 0:04:56.1]} 3. Nc3 {[%clk 0:04:47.6]} 3... c5 {[%clk 0:04:53.5]} 4.
cxd5 {[%clk 0:04:46]} 4... Nxd5 {[%clk 0:04:51.8]} 5. Nxd5 {[%clk 0:04:42.2]}
5... Qxd5 {[%clk 0:04:49.4]} 6. e3 {[%clk 0:04:40]} 6... Nc6 {[%clk 0:04:46.6]}
7. b3 {[%clk 0:04:32.1]} 7... cxd4 {[%clk 0:04:29.8]} 8. exd4 {[%clk 0:04:30.5]}
8... Qe4+ {[%clk 0:04:25.1]} 9. Be3 {[%clk 0:04:26.1]} 9... e5 {[%clk
0:04:20.4]} 10. dxe5 {[%clk 0:04:24.8]} 10... Bb4+ {[%clk 0:04:16.8]} 11. Ke2
{[%clk 0:04:21.6]} 11... Bg4+ {[%clk 0:04:13.6]} 12. f3 {[%clk 0:04:20.5]} 12...
Rd8 {[%clk 0:04:05.4]} 13. Qxd8+ {[%clk 0:03:57.5]} 13... Kxd8 {[%clk
0:04:03.1]} 14. fxg4 {[%clk 0:03:54.6]} 14... Nd4+ {[%clk 0:03:56.6]} 15. Kf2
{[%clk 0:03:48.5]} 15... Qc2+ {[%clk 0:03:55.6]} 16. Kg3 {[%clk 0:03:46.5]}
16... Ne6 {[%clk 0:03:42.6]} 17. Nf3 {[%clk 0:03:35.8]} 17... Qc3 {[%clk
0:03:30.9]} 18. Bxa7 {[%clk 0:03:30.7]} 18... Qxa1 {[%clk 0:03:25.7]} 19. Bb6+
{[%clk 0:03:27.4]} 19... Ke7 {[%clk 0:03:22.6]} 20. Nh4 {[%clk 0:03:01]} 20...
Qc3+ {[%clk 0:03:17.7]} 21. Kf2 {[%clk 0:02:49.3]} 21... Bc5+ {[%clk 0:03:12.9]}
22. Bxc5+ {[%clk 0:02:47.9]} 22... Qxc5+ {[%clk 0:03:09.9]} 23. Kg3 {[%clk
0:02:46.3]} 23... Qe3+ {[%clk 0:03:08.1]} 24. Nf3 {[%clk 0:02:43.1]} 24... Qf4+
{[%clk 0:03:07.4]} 25. Kh3 {[%clk 0:02:38.1]} 25... Ng5+ {[%clk 0:03:05.3]} 26.
Nxg5 {[%clk 0:02:37.3]} 26... Qxg5 {[%clk 0:03:04]} 27. Bc4 {[%clk 0:02:32.7]}
27... h5 {[%clk 0:03:02]} 28. Kg3 {[%clk 0:02:18.6]} 28... Qe3+ {[%clk 0:02:57]}
29. Kh4 {[%clk 0:02:17]} 29... hxg4+ {[%clk 0:02:56.5]} 30. Kxg4 {[%clk
0:02:14.8]} 30... f5+ {[%clk 0:02:52]} 31. Kxf5 {[%clk 0:02:13.7]} 31... g6+
{[%clk 0:02:49.2]} 32. Kxg6 {[%clk 0:02:12.9]} 32... Rh6+ {[%clk 0:02:47.6]} 33.
Kg7 {[%clk 0:02:11.4]} 33... Qg5# {[%clk 0:02:45.7]} 0-1

[Event "Live Chess"]
[Site "Chess.com"]
[Date "2023.05.20"]
[Round "-"]
[White "matt1979"]
[Black "Conradical12"]
[Result "1-0"]
[WhiteElo "1468"]
[BlackElo "1526"]
[TimeControl "300"]
[EndTime "11:50:21 PDT"]
[Termination "matt1979 won by resignation"]

1. f4 {[%clk 0:04:58.8]} 1... Nc6 {[%clk 0:04:57.5]} 2. Nf3 {[%clk 0:04:56.9]}
2... f5 {[%clk 0:04:56.3]} 3. e3 {[%clk 0:04:53]} 3... e6 {[%clk 0:04:52.9]} 4.
Bc4 {[%clk 0:04:43.6]} 4... h5 {[%clk 0:04:50.9]} 5. O-O {[%clk 0:04:39.5]} 5...
h4 {[%clk 0:04:49.9]} 6. h3 {[%clk 0:04:37.9]} 6... Rh6 {[%clk 0:04:47.5]} 7. d3
{[%clk 0:04:35.1]} 7... d5 {[%clk 0:04:46.4]} 8. Bb5 {[%clk 0:04:33.4]} 8... Rg6
{[%clk 0:04:44.7]} 9. Ne5 {[%clk 0:04:30.8]} 9... Rg3 {[%clk 0:04:41.1]} 10.
Nxc6 {[%clk 0:04:28.5]} 10... bxc6 {[%clk 0:04:39.7]} 11. Bxc6+ {[%clk
0:04:27.3]} 11... Bd7 {[%clk 0:04:38.9]} 12. Bxa8 {[%clk 0:04:26]} 12... Qxa8
{[%clk 0:04:37.9]} 13. Nc3 {[%clk 0:04:19.6]} 13... d4 {[%clk 0:04:37.2]} 14.
Qe2 {[%clk 0:04:02.3]} 14... dxc3 {[%clk 0:04:35.2]} 15. bxc3 {[%clk 0:04:01.1]}
15... Bc6 {[%clk 0:04:31.9]} 16. Rf2 {[%clk 0:03:56.4]} 16... Bd6 {[%clk
0:03:54.2]} 17. Bd2 {[%clk 0:03:45.8]} 17... Nf6 {[%clk 0:03:50.6]} 18. Re1
{[%clk 0:03:33]} 18... Bf3 {[%clk 0:03:39.4]} 19. Rxf3 {[%clk 0:03:21.9]} 19...
Qxf3 {[%clk 0:03:36.1]} 20. Qxf3 {[%clk 0:03:19.9]} 20... Rxf3 {[%clk
0:03:35.1]} 21. gxf3 {[%clk 0:03:18.5]} 21... Nd5 {[%clk 0:03:35]} 22. Kf2
{[%clk 0:03:08.2]} 22... g5 {[%clk 0:03:30.5]} 23. e4 {[%clk 0:02:53.5]} 23...
Nxf4 {[%clk 0:03:22.1]} 24. Bxf4 {[%clk 0:02:50.9]} 24... Bxf4 {[%clk
0:03:20.8]} 25. Kg2 {[%clk 0:02:47.1]} 25... Bd2 {[%clk 0:03:14.5]} 26. Re2
{[%clk 0:02:45.5]} 26... Bxc3 {[%clk 0:03:12.6]} 27. exf5 {[%clk 0:02:42.6]}
27... e5 {[%clk 0:03:09.8]} 28. Re4 {[%clk 0:02:29.6]} 28... Ke7 {[%clk
0:03:08.2]} 29. Rc4 {[%clk 0:02:27.4]} 29... Ba5 {[%clk 0:02:58.8]} 30. Ra4
{[%clk 0:02:24.4]} 30... Bb6 {[%clk 0:02:57.4]} 31. c3 {[%clk 0:02:16.6]} 31...
Kf6 {[%clk 0:02:56]} 32. d4 {[%clk 0:02:14.9]} 32... exd4 {[%clk 0:02:54.3]} 33.
cxd4 {[%clk 0:02:11.7]} 33... Kxf5 {[%clk 0:02:53.9]} 34. Kf2 {[%clk 0:01:57.7]}
34... c5 {[%clk 0:02:50.5]} 35. d5 {[%clk 0:01:48.3]} 35... Ke5 {[%clk
0:02:46.8]} 36. Rg4 {[%clk 0:01:43]} 36... Bd8 {[%clk 0:02:41.8]} 37. f4+ {[%clk
0:01:36.9]} 37... Kf5 {[%clk 0:02:24.9]} 38. fxg5 {[%clk 0:01:32.7]} 38... Bxg5
{[%clk 0:02:22.9]} 39. Ra4 {[%clk 0:01:22.2]} 39... c4 {[%clk 0:02:16.6]} 40.
Rxa7 {[%clk 0:01:17.7]} 40... Ke4 {[%clk 0:02:15.6]} 41. Rd7 {[%clk 0:01:09.7]}
41... Kd3 {[%clk 0:01:58.9]} 42. d6 {[%clk 0:01:06.6]} 42... c3 {[%clk
0:01:58.3]} 43. Rc7 {[%clk 0:01:03.1]} 43... c2 {[%clk 0:01:56.6]} 44. d7 {[%clk
0:00:58.4]} 44... Kd2 {[%clk 0:01:53.8]} 45. a4 {[%clk 0:00:45.3]} 45... c1=Q
{[%clk 0:01:52.6]} 46. Rxc1 {[%clk 0:00:44]} 46... Kxc1 {[%clk 0:01:52.1]} 47.
a5 {[%clk 0:00:42.7]} 47... Bd8 {[%clk 0:01:51.4]} 48. a6 {[%clk 0:00:41.5]}
48... Bb6+ {[%clk 0:01:41.8]} 49. Kf3 {[%clk 0:00:36.2]} 1-0

[Event "Live Chess"]
[Site "Chess.com"]
[Date "2023.05.20"]
[Round "-"]
[White "1PRK1"]
[Black "Brooms1989"]
[Result "1-0"]
[WhiteElo "1378"]
[BlackElo "1006"]
[TimeControl "300"]
[EndTime "11:50:24 PDT"]
[Termination "1PRK1 won by checkmate"]

1. e4 {[%clk 0:04:57.5]} 1... e5 {[%clk 0:04:55.3]} 2. Nf3 {[%clk 0:04:55.2]}
2... Nc6 {[%clk 0:04:54]} 3. Bb5 {[%clk 0:04:51.8]} 3... a6 {[%clk 0:04:53]} 4.
Ba4 {[%clk 0:04:48.8]} 4... Nf6 {[%clk 0:04:51.3]} 5. d3 {[%clk 0:04:46.7]} 5...
Bc5 {[%clk 0:04:49.6]} 6. c3 {[%clk 0:04:39.5]} 6... h6 {[%clk 0:04:48]} 7. Bxc6
{[%clk 0:04:37.1]} 7... dxc6 {[%clk 0:04:45.8]} 8. Nxe5 {[%clk 0:04:36.7]} 8...
Bd6 {[%clk 0:04:44.4]} 9. Nf3 {[%clk 0:04:34.1]} 9... Bg4 {[%clk 0:04:43.8]} 10.
Nbd2 {[%clk 0:04:30.1]} 10... Qd7 {[%clk 0:04:38.1]} 11. O-O {[%clk 0:04:27.8]}
11... O-O-O {[%clk 0:04:36.7]} 12. Re1 {[%clk 0:04:21.9]} 12... Bxf3 {[%clk
0:04:29]} 13. Nxf3 {[%clk 0:04:20.5]} 13... Be7 {[%clk 0:04:26.3]} 14. d4 {[%clk
0:04:12.6]} 14... c5 {[%clk 0:04:19.9]} 15. d5 {[%clk 0:04:07.4]} 15... c6
{[%clk 0:04:17.7]} 16. c4 {[%clk 0:04:04.4]} 16... cxd5 {[%clk 0:04:12.6]} 17.
cxd5 {[%clk 0:04:03.4]} 17... g5 {[%clk 0:03:44.9]} 18. Ne5 {[%clk 0:03:57.1]}
18... Qe8 {[%clk 0:03:38.2]} 19. Nc4 {[%clk 0:03:33.9]} 19... Qb5 {[%clk
0:03:10.4]} 20. b3 {[%clk 0:03:27.3]} 20... h5 {[%clk 0:03:01.4]} 21. d6 {[%clk
0:03:25.5]} 21... Qb4 {[%clk 0:02:47.6]} 22. Bd2 {[%clk 0:03:14.1]} 22... Qb5
{[%clk 0:02:32.2]} 23. dxe7 {[%clk 0:03:06.1]} 23... Rde8 {[%clk 0:02:26.9]} 24.
Nd6+ {[%clk 0:02:59]} 24... Kd7 {[%clk 0:02:24.6]} 25. Nxb5 {[%clk 0:02:57.8]}
25... Rxe7 {[%clk 0:02:24.5]} 26. Bxg5+ {[%clk 0:02:51.3]} 26... Ke8 {[%clk
0:02:22.3]} 27. Bxf6 {[%clk 0:02:49.6]} 27... Rg8 {[%clk 0:02:22]} 28. Bxe7
{[%clk 0:02:48.4]} 28... Kxe7 {[%clk 0:02:21.9]} 29. Qd6+ {[%clk 0:02:45.3]}
29... Ke8 {[%clk 0:02:20.5]} 30. Nc7# {[%clk 0:02:44.1]} 1-0

[Event "Live Chess"]
[Site "Chess.com"]
[Date "2023.05.20"]
[Round "-"]
[White "BostonStrangler"]
[Black "Richardallis"]
[Result "0-1"]
[WhiteElo "2034"]
[BlackElo "1759"]
[TimeControl "300"]
[EndTime "11:50:34 PDT"]
[Termination "Richardallis won on time"]

1. Nf3 {[%clk 0:04:59]} 1... f5 {[%clk 0:04:58.5]} 2. e4 {[%clk 0:04:57]} 2...
fxe4 {[%clk 0:04:57.3]} 3. Ng5 {[%clk 0:04:55.6]} 3... d5 {[%clk 0:04:55.9]} 4.
d3 {[%clk 0:04:53.8]} 4... exd3 {[%clk 0:04:52]} 5. Bxd3 {[%clk 0:04:50.7]} 5...
Nf6 {[%clk 0:04:51.4]} 6. Nxh7 {[%clk 0:04:44.4]} 6... e5 {[%clk 0:04:46.1]} 7.
Bg6+ {[%clk 0:04:34.7]} 7... Kd7 {[%clk 0:04:44.1]} 8. Ng5 {[%clk 0:04:29.1]}
8... Qe7 {[%clk 0:04:30.7]} 9. Nc3 {[%clk 0:04:23.5]} 9... c6 {[%clk 0:04:28.9]}
10. Nf7 {[%clk 0:03:52.7]} 10... Rh4 {[%clk 0:04:08.1]} 11. Bg5 {[%clk
0:03:29.3]} 11... Rd4 {[%clk 0:04:06.2]} 12. Qe2 {[%clk 0:03:24.2]} 12... Kc7
{[%clk 0:04:01.3]} 13. Nxe5 {[%clk 0:03:18.1]} 13... Qb4 {[%clk 0:03:50.2]} 14.
Nd3 {[%clk 0:03:10.5]} 14... Rxd3 {[%clk 0:03:38.6]} 15. Qxd3 {[%clk 0:02:54.8]}
15... Qxb2 {[%clk 0:03:36.2]} 16. O-O {[%clk 0:02:53.4]} 16... Bb4 {[%clk
0:03:32.9]} 17. Bf4+ {[%clk 0:02:48.2]} 17... Kd8 {[%clk 0:03:28.8]} 18. Na4
{[%clk 0:02:26.6]} 18... Qa3 {[%clk 0:03:23.5]} 19. c3 {[%clk 0:02:22.6]} 19...
Qxa4 {[%clk 0:03:19.5]} 20. cxb4 {[%clk 0:02:21.2]} 20... Qxb4 {[%clk
0:03:18.2]} 21. Rfe1 {[%clk 0:02:14.4]} 21... Qxf4 {[%clk 0:03:16.4]} 22. Re3
{[%clk 0:01:53.7]} 22... Nbd7 {[%clk 0:03:09.2]} 23. Rae1 {[%clk 0:01:51.2]}
23... Nc5 {[%clk 0:03:02.5]} 24. Qa3 {[%clk 0:01:47.4]} 24... b6 {[%clk
0:02:58.4]} 25. Rf3 {[%clk 0:01:39.4]} 25... Qd2 {[%clk 0:02:51]} 26. Qe3 {[%clk
0:01:23.9]} 26... Qxe3 {[%clk 0:02:47.1]} 27. Rfxe3 {[%clk 0:01:20.5]} 27... Bd7
{[%clk 0:02:38.7]} 28. Re7 {[%clk 0:01:19.1]} 28... Nd3 {[%clk 0:02:37.5]} 29.
R1e3 {[%clk 0:01:11.5]} 29... d4 {[%clk 0:02:36.4]} 30. Rxd7+ {[%clk 0:01:02.2]}
30... Kxd7 {[%clk 0:02:35.2]} 31. Rxd3 {[%clk 0:01:01.5]} 31... c5 {[%clk
0:02:34.7]} 32. h4 {[%clk 0:00:59.7]} 32... Kd6 {[%clk 0:02:32.3]} 33. h5 {[%clk
0:00:58.7]} 33... Kd5 {[%clk 0:02:30.8]} 34. Rg3 {[%clk 0:00:57.1]} 34... c4
{[%clk 0:02:26.7]} 35. Rg5+ {[%clk 0:00:55.5]} 35... Kd6 {[%clk 0:02:24.4]} 36.
Kf1 {[%clk 0:00:48.4]} 36... d3 {[%clk 0:02:18.7]} 37. Ke1 {[%clk 0:00:45.9]}
37... Rd8 {[%clk 0:02:06.3]} 38. Kd2 {[%clk 0:00:43.8]} 38... Nd5 {[%clk
0:02:03.1]} 39. Be4 {[%clk 0:00:33.8]} 39... Nf6 {[%clk 0:01:56.9]} 40. Bg6
{[%clk 0:00:32.6]} 40... a6 {[%clk 0:01:53.4]} 41. Rf5 {[%clk 0:00:29.2]} 41...
b5 {[%clk 0:01:52.1]} 42. h6 {[%clk 0:00:26.7]} 42... Ke6 {[%clk 0:01:43.2]} 43.
hxg7 {[%clk 0:00:22.4]} 43... Rg8 {[%clk 0:01:41.9]} 44. Rg5 {[%clk 0:00:10.6]}
44... Rxg7 {[%clk 0:01:40.6]} 45. Bf5+ {[%clk 0:00:09.7]} 45... Kf7 {[%clk
0:01:39.8]} 46. Rxg7+ {[%clk 0:00:08.2]} 46... Kxg7 {[%clk 0:01:39.2]} 47. Bc8
{[%clk 0:00:07.2]} 47... Ne4+ {[%clk 0:01:33.5]} 48. Ke1 {[%clk 0:00:05.6]}
48... d2+ {[%clk 0:01:27.6]} 49. Kd1 {[%clk 0:00:03.7]} 49... c3 {[%clk
0:01:27.2]} 0-1

[Event "Live Chess"]
[Site "Chess.com"]
[Date "2023.05.20"]
[Round "-"]
[White "Ocelot32"]
[Black "risinghelios"]
[Result "0-1"]
[WhiteElo "1397"]
[BlackElo "1937"]
[TimeControl "300"]
[EndTime "11:50:41 PDT"]
[Termination "risinghelios won by resignation"]

1. e4 {[%clk 0:04:58.1]} 1... c5 {[%clk 0:04:59.2]} 2. Nf3 {[%clk 0:04:55.1]}
2... Nc6 {[%clk 0:04:59.1]} 3. c3 {[%clk 0:04:54.3]} 3... d5 {[%clk 0:04:58.6]}
4. exd5 {[%clk 0:04:52.9]} 4... Qxd5 {[%clk 0:04:58.5]} 5. Na3 {[%clk
0:04:49.2]} 5... Bg4 {[%clk 0:04:57.6]} 6. Be2 {[%clk 0:04:47.2]} 6... Nf6
{[%clk 0:04:56.4]} 7. O-O {[%clk 0:04:45.3]} 7... e6 {[%clk 0:04:55.8]} 8. d4
{[%clk 0:04:38.9]} 8... cxd4 {[%clk 0:04:54.3]} 9. Nxd4 {[%clk 0:04:33.7]} 9...
Bxe2 {[%clk 0:04:52.4]} 10. Qxe2 {[%clk 0:04:31.9]} 10... O-O-O {[%clk
0:04:51.2]} 11. Be3 {[%clk 0:04:23.5]} 11... e5 {[%clk 0:04:49.1]} 12. Nxc6
{[%clk 0:04:20.1]} 12... Qxc6 {[%clk 0:04:49]} 13. Rfd1 {[%clk 0:04:07.5]} 13...
Bxa3 {[%clk 0:04:48.1]} 14. bxa3 {[%clk 0:04:05.3]} 14... Kb8 {[%clk 0:04:48]}
15. Rab1 {[%clk 0:03:56.1]} 15... Ne4 {[%clk 0:04:46]} 16. Rxd8+ {[%clk
0:03:43.5]} 16... Rxd8 {[%clk 0:04:44.7]} 17. Rb3 {[%clk 0:03:42.5]} 17... Nxc3
{[%clk 0:04:42.8]} 18. Bxa7+ {[%clk 0:03:03.6]} 18... Kxa7 {[%clk 0:04:40.9]}
19. Qe3+ {[%clk 0:03:00.1]} 19... Kb8 {[%clk 0:04:38.2]} 20. Qxe5+ {[%clk
0:02:56.6]} 20... Qd6 {[%clk 0:04:31.8]} 21. Qxd6+ {[%clk 0:02:29.5]} 21... Rxd6
{[%clk 0:04:31.7]} 22. g3 {[%clk 0:02:27]} 22... Ne2+ {[%clk 0:04:28.7]} 23. Kg2
{[%clk 0:02:25.5]} 23... Nd4 {[%clk 0:04:28.6]} 24. Re3 {[%clk 0:02:21.2]} 24...
Ne6 {[%clk 0:04:28.5]} 25. a4 {[%clk 0:02:19.3]} 25... Rd2 {[%clk 0:04:27.9]}
26. a3 {[%clk 0:02:17.8]} 26... Ra2 {[%clk 0:04:25.2]} 27. a5 {[%clk 0:02:15.9]}
27... Ka7 {[%clk 0:04:22.7]} 28. h4 {[%clk 0:02:12.1]} 28... Ka6 {[%clk
0:04:21.7]} 29. Rf3 {[%clk 0:02:11.1]} 29... f6 {[%clk 0:04:19.8]} 30. g4 {[%clk
0:02:07.6]} 30... Kxa5 {[%clk 0:04:18.2]} 31. Re3 {[%clk 0:02:04.4]} 31... Nf8
{[%clk 0:04:15.9]} 32. Re7 {[%clk 0:02:02.7]} 32... Rxa3 {[%clk 0:04:10.9]} 33.
Rxb7 {[%clk 0:02:01.3]} 33... Ra4 {[%clk 0:04:09.7]} 34. Rxg7 {[%clk 0:01:57.9]}
34... Ne6 {[%clk 0:04:05.8]} 35. Rg8 {[%clk 0:01:54.5]} 35... h5 {[%clk
0:04:03.1]} 36. gxh5 {[%clk 0:01:51]} 36... Rxh4 {[%clk 0:04:02.2]} 37. Rh8
{[%clk 0:01:49.3]} 37... Nf4+ {[%clk 0:04:01.5]} 38. Kg3 {[%clk 0:01:47.9]}
38... Rxh5 {[%clk 0:04:01.1]} 39. Kxf4 {[%clk 0:01:46.9]} 39... Rxh8 {[%clk
0:03:59.5]} 0-1

[Event "Live Chess"]
[Site "Chess.com"]
[Date "2023.05.20"]
[Round "-"]
[White "tuppyglossop"]
[Black "SupremeTactician"]
[Result "0-1"]
[WhiteElo "1593"]
[BlackElo "2400"]
[TimeControl "300"]
[EndTime "11:50:45 PDT"]
[Termination "SupremeTactician won by resignation"]

1. e4 {[%clk 0:04:57]} 1... e5 {[%clk 0:04:56.9]} 2. Nf3 {[%clk 0:04:55.5]} 2...
Nc6 {[%clk 0:04:56.5]} 3. Bb5 {[%clk 0:04:54.2]} 3... a6 {[%clk 0:04:55.8]} 4.
Ba4 {[%clk 0:04:53]} 4... Nf6 {[%clk 0:04:55.1]} 5. d3 {[%clk 0:04:51.7]} 5...
Bc5 {[%clk 0:04:54]} 6. c3 {[%clk 0:04:50.6]} 6... O-O {[%clk 0:04:52.2]} 7. O-O
{[%clk 0:04:48.9]} 7... d5 {[%clk 0:04:51.1]} 8. exd5 {[%clk 0:04:44.6]} 8...
Nxd5 {[%clk 0:04:47.3]} 9. h3 {[%clk 0:04:43.5]} 9... Bd6 {[%clk 0:04:44.4]} 10.
Bxc6 {[%clk 0:04:41.4]} 10... bxc6 {[%clk 0:04:43.6]} 11. Re1 {[%clk 0:04:39.4]}
11... Re8 {[%clk 0:04:39.9]} 12. Bg5 {[%clk 0:04:36.3]} 12... f6 {[%clk
0:04:37.6]} 13. Bh4 {[%clk 0:04:33.9]} 13... Nf4 {[%clk 0:04:37]} 14. d4 {[%clk
0:04:27.1]} 14... e4 {[%clk 0:04:29.9]} 15. Nh2 {[%clk 0:04:24.2]} 15... Bf5
{[%clk 0:04:21.2]} 16. Nd2 {[%clk 0:04:18.8]} 16... Nd3 {[%clk 0:04:19.8]} 17.
Re2 {[%clk 0:04:03.5]} 17... Nxb2 {[%clk 0:04:16.1]} 18. Qb3+ {[%clk 0:04:01.1]}
18... Kh8 {[%clk 0:04:12.9]} 19. Qxb2 {[%clk 0:03:59.8]} 19... e3 {[%clk
0:04:07.3]} 20. fxe3 {[%clk 0:03:50]} 20... Bd3 {[%clk 0:04:03.6]} 21. Rf2
{[%clk 0:03:42.2]} 21... g5 {[%clk 0:04:01.1]} 22. Ng4 {[%clk 0:03:18.3]} 22...
gxh4 {[%clk 0:03:43.5]} 23. Nxf6 {[%clk 0:03:11.3]} 23... Rxe3 {[%clk 0:03:35]}
24. Nf3 {[%clk 0:03:07.3]} 24... Qxf6 {[%clk 0:03:32.8]} 25. Qd2 {[%clk
0:02:54.7]} 25... Bf4 {[%clk 0:03:23.9]} 26. Ne5 {[%clk 0:02:40]} 26... Rxe5
{[%clk 0:03:06.7]} 27. dxe5 {[%clk 0:02:34.9]} 27... Bxd2 {[%clk 0:03:04.4]} 28.
Rxf6 {[%clk 0:02:32.9]} 28... Be3+ {[%clk 0:03:03.3]} 29. Kh2 {[%clk 0:02:30.9]}
29... Bg5 {[%clk 0:02:55.4]} 30. Rxc6 {[%clk 0:02:28.8]} 30... Bf4+ {[%clk
0:02:52.3]} 31. Kh1 {[%clk 0:02:25.2]} 31... Rg8 {[%clk 0:02:47.9]} 32. Rf6
{[%clk 0:02:11.8]} 32... Bxe5 {[%clk 0:02:44.8]} 33. Re6 {[%clk 0:02:07.2]}
33... Bxc3 {[%clk 0:02:29.6]} 34. Rd1 {[%clk 0:01:59.2]} 34... Bf5 {[%clk
0:02:23.4]} 35. Re7 {[%clk 0:01:52.7]} 35... Bb4 {[%clk 0:02:06.3]} 36. Rxc7
{[%clk 0:01:46.1]} 36... Be4 {[%clk 0:02:03.4]} 37. Rf7 {[%clk 0:01:18.2]} 37...
Rxg2 {[%clk 0:01:57.8]} 38. Rdd7 {[%clk 0:01:12.5]} 38... Rg7+ {[%clk
0:01:10.8]} 39. Kh2 {[%clk 0:01:02.1]} 39... Bd6+ {[%clk 0:01:09]} 40. Rxd6
{[%clk 0:00:57.1]} 40... Rxf7 {[%clk 0:01:08.4]} 41. Rd8+ {[%clk 0:00:56.1]}
41... Kg7 {[%clk 0:01:07.3]} 42. Rd4 {[%clk 0:00:54.5]} 42... Rf2+ {[%clk
0:01:05]} 43. Kg1 {[%clk 0:00:52.3]} 43... Rf4 {[%clk 0:01:03.3]} 44. Rd7+
{[%clk 0:00:48.7]} 44... Kf6 {[%clk 0:00:58.9]} 45. Rd6+ {[%clk 0:00:47.8]}
45... Ke5 {[%clk 0:00:57.5]} 46. Rxa6 {[%clk 0:00:47.7]} 46... Rf3 {[%clk
0:00:55.4]} 47. Ra5+ {[%clk 0:00:44.3]} 47... Kf4 {[%clk 0:00:54.6]} 48. Rh5
{[%clk 0:00:42.1]} 48... Rxh3 {[%clk 0:00:53.2]} 49. Rxh7 {[%clk 0:00:41]} 49...
Bxh7 {[%clk 0:00:52.3]} 0-1

[Event "Live Chess"]
[Site "Chess.com"]
[Date "2023.05.20"]
[Round "-"]
[White "Horseymobile"]
[Black "viktorskliarov"]
[Result "0-1"]
[WhiteElo "1182"]
[BlackElo "2650"]
[TimeControl "300"]
[EndTime "11:50:53 PDT"]
[Termination "viktorskliarov won by resignation"]

1. d4 {[%clk 0:04:57.9]} 1... Nf6 {[%clk 0:04:55.2]} 2. c4 {[%clk 0:04:51.2]}
2... e6 {[%clk 0:04:48.4]} 3. Nc3 {[%clk 0:04:49.9]} 3... Bb4 {[%clk 0:04:44]}
4. Qc2 {[%clk 0:04:35.9]} 4... c5 {[%clk 0:04:41.2]} 5. Nf3 {[%clk 0:04:31.4]}
5... Nc6 {[%clk 0:04:38.1]} 6. a3 {[%clk 0:04:23.8]} 6... Bxc3+ {[%clk
0:04:29.6]} 7. bxc3 {[%clk 0:04:22.4]} 7... d6 {[%clk 0:04:26.8]} 8. e3 {[%clk
0:04:19.4]} 8... e5 {[%clk 0:04:21.7]} 9. Bb2 {[%clk 0:03:54.1]} 9... O-O {[%clk
0:04:17.8]} 10. Be2 {[%clk 0:03:52.5]} 10... b6 {[%clk 0:04:09.8]} 11. O-O
{[%clk 0:03:46]} 11... Qe8 {[%clk 0:04:02.1]} 12. d5 {[%clk 0:03:32.7]} 12...
Na5 {[%clk 0:04:00.1]} 13. e4 {[%clk 0:03:18.9]} 13... Nh5 {[%clk 0:03:52]} 14.
Ng5 {[%clk 0:02:56.5]} 14... Nf4 {[%clk 0:03:48.8]} 15. Bc1 {[%clk 0:02:45.1]}
15... Nxe2+ {[%clk 0:03:45.6]} 16. Qxe2 {[%clk 0:02:43.6]} 16... Ba6 {[%clk
0:03:40]} 17. Qh5 {[%clk 0:02:38.9]} 17... h6 {[%clk 0:03:38.4]} 18. f4 {[%clk
0:02:24.3]} 18... Bxc4 {[%clk 0:03:04.5]} 19. Rf3 {[%clk 0:01:52]} 19... Be2
{[%clk 0:02:59.9]} 20. f5 {[%clk 0:01:32.6]} 20... hxg5 {[%clk 0:02:50]} 21.
Bxg5 {[%clk 0:01:21.8]} 21... f6 {[%clk 0:02:43.7]} 22. Qxe8 {[%clk 0:00:59.2]}
22... Rfxe8 {[%clk 0:02:39.4]} 0-1